bitfinex-derivatives/quotes_ETHF0:USTF0_20260203
["timestamp","ask_amount","ask_price","bid_price","bid_amount"]
[1770118744471,0.00418334,2275.9,2275.0,2.58236118]
[1770118750581,0.00418334,2275.9,2275.0,0.00347719]
[1770118750880,0.00418334,2275.9,2275.0,2.58236118]
[1770118751078,2.62795063,2275.9,2275.0,2.58236118]
[1770118751681,2.84785063,2275.9,2275.0,2.58236118]
[1770118753579,4.21714592,2275.7,2274.3,2.57888399]
[1770118753773,2.62376729,2275.6,2274.3,2.57888399]
[1770118754082,2.61121797,2275.6,2274.5,2.57888399]
[1770118754777,2.61121797,2275.6,2274.5,2.58372447]
[1770118757685,0.21996,2275.3,2274.5,0.00484048]
[1770118757883,2.61121797,2275.2,2274.3,2.57888399]
[1770118758088,2.61121797,2275.0,2273.9,2.57888399]
[1770118758289,2.61121797,2275.0,2274.0,2.57888399]
[1770118758989,2.61121797,2274.8,2274.0,2.5832247]
[1770118759487,2.61121797,2274.8,2274.0,0.00434071]
[1770118759884,2.61121797,2274.8,2274.0,2.5832247]
[1770118760088,2.61121797,2275.0,2274.0,2.5832247]
[1770118760287,2.83119797,2275.0,2274.0,2.5832247]
[1770118760486,2.61121797,2274.9,2274.0,2.5832247]
[1770118760990,2.83121797,2274.9,2274.0,2.5832247]
[1770118762783,2.83121797,2274.9,2273.7,0.22196456]
[1770118762784,0.22006,2274.3,2273.3,2.57833494]
[1770118762994,2.61121797,2274.2,2273.3,2.57833494]
[1770118763187,3.44343792,2274.1,2273.3,1.60098024]
[1770118763385,0.61213995,2274.0,2272.6,40.8]
[1770118763580,0.61213995,2273.9,2272.6,40.8]
[1770118763782,0.61213995,2273.7,2272.6,40.80481213]
[1770118763982,0.61213995,2273.6,2272.6,0.00481213]
[1770118764189,0.61213995,2273.8,2272.6,0.00481213]
[1770118764391,0.61213995,2273.8,2272.6,40.80481213]
[1770118764591,8.76613995,2273.7,2272.6,0.00481213]
[1770118764790,0.61213995,2273.6,2272.6,0.00481213]
[1770118765091,0.66699594,2273.3,2272.2,2.4253868]
[1770118765484,0.66699594,2273.3,2272.3,2.4253868]
[1770118765789,0.66699594,2273.5,2272.3,2.64735136]
[1770118765992,0.66699594,2273.5,2272.3,2.43059928]
[1770118766392,0.66699594,2273.3,2272.3,2.43059928]
[1770118766591,0.66699594,2273.1,2272.3,2.43059928]
[1770118766893,0.22019,2272.9,2271.5,2.4253868]
[1770118767088,0.73890365,2273.4,2272.0,2.4253868]
[1770118767391,0.22013,2273.5,2272.2,2.4253868]
[1770118767591,0.73890365,2273.7,2272.6,2.4253868]
[1770118767791,0.73890365,2273.7,2272.6,2.65072044]
[1770118768491,0.95902365,2273.6,2272.6,0.00336908]
[1770118768688,0.73890365,2273.5,2272.6,0.00336908]
[1770118769694,0.73890365,2273.5,2272.7,2.64735136]
[1770118769893,0.22012,2273.6,2272.7,2.64735136]
[1770118770093,0.22012,2273.6,2272.7,2.4253868]
[1770118770592,0.98226291,2273.6,2272.7,2.4253868]
[1770118770994,0.00555366,2273.9,2272.7,2.4253868]
[1770118770995,0.99340579,2273.9,2272.7,2.4253868]
[1770118771291,9.13840579,2273.9,2272.7,2.4253868]
[1770118771491,0.76776213,2273.8,2272.7,2.4253868]
[1770118771691,0.76776213,2273.8,2272.7,2.64735136]
[1770118771891,0.76776213,2273.8,2272.8,2.64735136]
[1770118772092,0.76776213,2273.8,2272.8,2.4253868]
[1770118772296,0.76776213,2273.8,2272.8,2.64735136]
[1770118774494,0.76776213,2273.8,2272.9,0.22196456]
[1770118774694,0.76776213,2273.8,2272.9,2.64735136]
[1770118776190,0.76807744,2273.7,2272.9,2.4253868]
[1770118776595,0.76807744,2273.7,2272.9,2.64735136]
[1770118776900,0.2201,2273.8,2272.9,2.64735136]
[1770118777092,0.2201,2273.8,2272.9,2.4253868]
[1770118777699,0.2201,2273.8,2273.1,2.4253868]
[1770118779199,0.2201,2273.8,2273.3,2.4253868]
[1770118779698,0.2201,2273.8,2273.3,2.64735136]
[1770118780195,0.2201,2273.8,2273.4,2.64735136]
[1770118780397,0.2201,2273.8,2273.4,2.4253868]
[1770118780597,0.2201,2273.8,2273.4,2.64735136]
[1770118781098,0.2201,2273.8,2273.5,0.22196456]
[1770118782499,0.00555366,2273.9,2273.6,0.22196456]
[1770118782697,2.61121797,2274.2,2273.5,2.4253868]
[1770118783000,11.72907213,2274.3,2273.5,2.4253868]
[1770118783597,11.73343477,2274.3,2273.5,2.4253868]
[1770118784196,3.59994535,2274.2,2272.8,2.4253868]
[1770118784390,0.76865738,2274.1,2273.1,2.4253868]
[1770118784795,0.76865738,2274.1,2273.2,2.64735136]
[1770118785098,3.37987535,2274.1,2273.2,2.4253868]
[1770118785297,3.37987535,2274.1,2273.3,0.22196456]
[1770118785793,3.37987535,2274.1,2273.3,2.64735136]
[1770118785997,3.37987535,2274.1,2273.4,0.22196456]
[1770118786800,2.61121797,2274.1,2273.5,2.4253868]
[1770118787095,2.61558061,2274.3,2273.7,2.4253868]
[1770118787296,2.61558061,2274.3,2273.5,2.4253868]
[1770118787497,3.38112942,2274.0,2273.2,2.4253868]
[1770118787690,0.22011,2273.8,2273.0,2.4253868]
[1770118787896,2.83132797,2273.8,2273.0,2.64735136]
[1770118788097,2.83132797,2273.8,2273.2,2.64735136]
[1770118788296,2.83132797,2273.8,2273.2,2.4253868]
[1770118788496,2.83132797,2273.8,2273.2,0.22196456]
[1770118788800,2.83132797,2273.8,2273.2,2.64735136]
[1770118789197,2.61121797,2273.8,2273.3,2.64735136]
[1770118789403,2.61121797,2273.8,2272.9,3.08]
[1770118789404,2.61121797,2273.8,2273.0,2.4253868]
[1770118789599,2.61121797,2273.8,2273.1,0.22196456]
[1770118789797,2.61121797,2273.8,2273.2,0.22196456]
[1770118790097,2.61121797,2273.6,2273.1,2.64735136]
[1770118790297,2.61121797,2273.6,2272.7,2.55888657]
[1770118790298,0.76716594,2273.5,2272.7,2.55888657]
[1770118790500,0.76716594,2273.2,2272.6,0.00336908]
[1770118790705,0.98734594,2273.0,2271.9,2.55888657]
[1770118791002,0.22018,2273.0,2271.9,2.55888657]
[1770118791300,0.76527831,2272.9,2271.9,2.78085113]
[1770118791501,0.98548831,2272.7,2271.9,2.55888657]
[1770118791699,5.08661142,2272.4,2271.9,0.00479573]
[1770118791900,5.08661142,2272.3,2271.1,3.08]
[1770118792100,2.6081465,2272.4,2271.6,0.22196456]
[1770118792299,2.6081465,2272.4,2271.2,5.7649268]
[1770118792498,2.6081465,2272.4,2271.8,0.22196456]
[1770118792705,2.6081465,2272.4,2271.7,0.22196456]
[1770118792902,2.6081465,2272.4,2271.9,0.22196456]
[1770118793105,5.12269008,2272.4,2271.9,0.22196456]
[1770118793304,5.12269008,2272.4,2271.7,0.0035539]
[1770118793305,5.12269008,2272.4,2272.0,0.22196456]
[1770118793504,5.12269008,2272.4,2271.9,0.22196456]
[1770118793901,2.51454358,2272.3,2271.7,0.0035539]
[1770118794102,2.51454358,2272.1,2271.4,2.53696692]
[1770118794299,2.6081465,2272.1,2271.4,2.53696692]
[1770118795009,5.12269008,2272.2,2271.4,2.53696692]
[1770118795200,2.51454358,2272.1,2271.4,2.5404411]
[1770118795404,5.12269008,2272.1,2271.4,0.00347418]
[1770118795706,2.51454358,2272.0,2271.4,0.00347418]
[1770118796208,2.6081465,2272.1,2271.2,2.53696692]
[1770118796209,2.51454358,2271.8,2271.2,2.53696692]
[1770118796810,2.51454358,2271.8,2270.9,2.53696692]
[1770118797312,2.73483358,2271.8,2270.9,2.54205544]
[1770118797606,2.51454358,2271.7,2270.9,2.54205544]
[1770118798608,2.73487358,2271.5,2270.6,2.53696692]
[1770118798911,2.51454358,2271.0,2269.7,2.53696692]
[1770118799110,0.22036,2271.1,2269.7,2.53696692]
[1770118799111,5.09654358,2270.9,2269.7,2.53696692]
[1770118799308,5.87248073,2270.9,2269.7,2.53696692]
[1770118799705,0.78134779,2270.9,2269.9,2.53696692]
[1770118800204,0.22033,2271.5,2270.1,2.53696692]
[1770118800408,8.266,2271.7,2270.1,2.53696692]
[1770118800611,0.62031922,2271.4,2270.3,2.53696692]
[1770118800806,2.51454358,2271.8,2270.3,2.53696692]
[1770118800807,2.8283765,2272.5,2270.8,2.53696692]
[1770118801006,2.73477358,2272.5,2270.8,2.53696692]
[1770118801208,2.51454358,2272.1,2271.0,2.53696692]
[1770118801510,2.51454358,2271.9,2271.0,2.53696692]
[1770118801907,2.51454358,2271.7,2270.3,2.53696692]
[1770118802311,2.51454358,2271.5,2270.3,2.53696692]
[1770118802507,2.51454358,2271.8,2270.3,2.53696692]
[1770118802705,2.51454358,2271.8,2270.5,2.53696692]
[1770118803115,2.51454358,2271.2,2270.3,8.33281906]
[1770118803304,3.736,2271.7,2270.4,2.53696692]
[1770118803305,5.09654358,2271.5,2270.4,2.53696692]
[1770118803705,0.46554178,2271.1,2270.4,2.53696692]
[1770118804211,2.98008536,2271.1,2270.4,2.53696692]
[1770118804611,0.46554178,2271.1,2270.4,2.53696692]
[1770118805011,2.73487358,2271.5,2270.4,2.53696692]
[1770118805410,2.51454358,2271.9,2270.4,2.53696692]
[1770118805712,2.73484358,2271.8,2270.4,2.53696692]
[1770118809913,5.09754358,2272.1,2270.6,2.53696692]
[1770118810218,2.51454358,2272.0,2270.6,2.53696692]
[1770118810719,2.51454358,2272.0,2270.8,2.53696692]
[1770118811513,0.22027,2272.1,2270.8,2.53696692]
[1770118811818,2.51454358,2272.3,2271.0,2.53696692]
[1770118812216,2.51454358,2272.4,2271.2,2.53696692]
[1770118813316,2.51454358,2272.2,2271.2,2.53696692]
[1770118814821,2.51454358,2272.4,2271.2,2.53696692]
[1770118815423,0.00337317,2272.5,2271.5,2.53696692]
[1770118815718,2.51454358,2273.0,2271.6,5.80571636]
[1770118815923,2.51454358,2273.0,2271.7,2.53696692]
[1770118816616,2.51969599,2273.0,2271.7,2.53696692]
[1770118817917,0.22019,2272.9,2271.7,2.53696692]
[1770118818117,2.73474358,2272.8,2271.7,2.53696692]
[1770118819823,2.51454358,2272.7,2271.7,2.53696692]
[1770118820222,5.0999626,2272.7,2271.7,2.53696692]
[1770118820922,2.58541902,2272.8,2271.7,2.53696692]
[1770118821323,4.98209467,2272.9,2271.7,2.53696692]
[1770118822024,2.39667565,2272.9,2271.7,2.75726692]
[1770118823725,2.39667565,2272.9,2271.7,2.53696692]
[1770118824821,2.39667565,2274.3,2271.7,2.53696692]
[1770118825023,19.08332809,2276.0,2273.5,2.17195515]
[1770118825321,9.55854551,2278.9,2275.8,4.396]
[1770118825619,1.95059515,2278.6,2275.9,6.59671107]
[1770118825825,58.24220079,2277.7,2277.6,15.33657263]
[1770118826027,37.76258938,2278.5,2277.6,0.00444783]
[1770118826325,8.429,2278.6,2277.4,12.91498347]
[1770118826526,48.23788763,2278.3,2277.4,12.91498347]
[1770118826731,4.61280371,2278.5,2277.4,12.91498347]
[1770118827023,2.58000201,2278.2,2277.4,12.91498347]
[1770118827221,0.00481844,2278.2,2277.5,5.62510825]
[1770118827418,2.58000201,2279.6,2277.5,11.0978034]
[1770118827616,2.58000201,2279.2,2278.7,7.70284723]
[1770118827821,2.58000201,2279.2,2277.9,2.17195515]
[1770118827822,2.58000201,2279.2,2278.9,7.70284723]
[1770118828016,2.58000201,2279.7,2278.9,7.70284723]
[1770118828223,2.58000201,2279.7,2279.2,7.70284723]
[1770118828526,4.61280371,2279.6,2279.5,3.83106486]
[1770118828722,2.39667565,2279.5,2278.6,2.53064435]
[1770118828919,42.07003705,2279.5,2278.6,2.53064435]
[1770118829117,2.39667565,2279.5,2278.3,7.70284723]
[1770118829319,37.14271705,2278.8,2277.7,7.70284723]
[1770118829524,2.39667565,2278.9,2277.2,5.107]
[1770118829723,2.39667565,2278.9,2277.8,5.80726219]
[1770118830123,37.14271705,2278.6,2277.2,0.00377751]
[1770118830323,2.58,2279.2,2277.3,2.58]
[1770118830324,2.39667565,2278.8,2277.3,2.58]
[1770118830525,2.39667565,2279.1,2277.3,8.38726219]
[1770118830725,2.39667565,2279.5,2277.5,0.21974]
[1770118831128,2.39667565,2279.5,2277.7,2.53064435]
[1770118831425,2.39667565,2279.5,2277.9,2.53064435]
[1770118831629,2.39667565,2279.4,2277.9,2.53064435]
[1770118831829,2.40027962,2279.7,2278.1,2.53064435]
[1770118832024,2.39667565,2279.6,2278.2,2.53064435]
[1770118832231,39.5393927,2279.6,2278.2,8.23566542]
[1770118832529,37.14271705,2279.5,2278.3,2.53064435]
[1770118832828,2.39667565,2279.6,2278.4,5.6561564]
[1770118833028,2.39667565,2279.6,2278.5,2.53064435]
[1770118833223,37.14271705,2279.5,2278.5,2.53064435]
[1770118833630,37.14271705,2279.4,2278.5,2.53064435]
[1770118833830,37.14271705,2279.5,2278.5,2.53064435]
[1770118834032,39.5393927,2279.6,2278.5,2.53064435]
[1770118834731,39.5393927,2279.6,2278.5,2.75028435]
[1770118835031,39.5393927,2279.4,2278.6,0.21964]
[1770118835531,39.5393927,2279.4,2278.6,2.75028435]
[1770118835532,37.12955083,2279.4,2278.6,2.75028435]
[1770118835730,2.40027962,2279.7,2278.6,2.75028435]
[1770118835931,0.00360397,2279.7,2278.8,2.75025435]
[1770118836129,37.1331548,2279.7,2278.8,2.75463085]
[1770118837030,37.1331548,2279.7,2278.9,0.21961]
[1770118837326,37.1331548,2279.7,2278.9,2.75025435]
[1770118837535,37.12955083,2279.6,2279.0,0.2196]
[1770118837932,33.15730648,2279.5,2278.8,0.0043765]
[1770118838132,33.16091045,2279.7,2278.8,0.0043765]
[1770118839135,0.00360397,2279.7,2279.2,0.21958]
[1770118839329,2.40027962,2279.7,2279.2,0.21958]
[1770118839534,33.16091045,2279.7,2279.2,0.21958]
[1770118839936,33.15730648,2279.5,2279.2,0.21958]
[1770118840437,33.15730648,2279.4,2279.2,0.21958]
[1770118840728,33.15730648,2279.5,2279.2,0.21958]
[1770118841128,33.15730648,2279.4,2279.2,0.21958]
[1770118841332,2.39667565,2279.2,2278.8,0.0043765]
[1770118841536,35.32998563,2279.2,2278.7,0.21962]
[1770118841741,32.93330998,2279.0,2278.3,2.53064435]
[1770118841940,2.39667565,2279.5,2278.6,2.53064435]
[1770118842136,0.00360397,2279.7,2278.8,2.53064435]
[1770118842536,0.00360397,2279.7,2278.8,2.53395913]
[1770118843136,32.93330998,2279.6,2279.2,0.21958]
[1770118843341,35.32998563,2279.6,2279.2,0.21958]
[1770118843641,32.93330998,2279.4,2279.2,0.21958]
[1770118844042,32.93330998,2279.3,2279.2,0.21958]
[1770118844241,32.93330998,2279.4,2279.2,0.21958]
[1770118844637,2.39667565,2279.2,2278.8,0.00331478]
[1770118844842,2.39667565,2279.2,2278.7,0.21962]
[1770118845138,2.39667565,2279.2,2278.8,0.21961]
[1770118845343,0.00360397,2279.7,2278.6,2.53064435]
[1770118845541,0.00360397,2279.7,2279.3,0.21957]
[1770118845741,2.40027962,2279.7,2279.3,0.22489796]
[1770118845941,32.71368998,2279.4,2279.2,0.01316513]
[1770118846141,32.71368998,2279.5,2279.3,0.21957]
[1770118846639,32.26585716,2279.5,2279.3,0.21957]
[1770118846839,34.66253281,2279.4,2279.2,0.01316513]
[1770118847040,32.26585716,2279.3,2279.0,0.21959]
[1770118847243,2.39667565,2279.4,2279.0,0.21959]
[1770118847945,34.66253281,2279.1,2278.7,0.21962]
[1770118848142,2.39667565,2279.1,2278.7,0.21962]
[1770118848342,32.26585716,2278.8,2278.4,6.58757411]
[1770118848643,34.66253281,2279.0,2278.5,6.58757411]
[1770118848844,34.66253281,2279.0,2278.6,6.58757411]
[1770118848845,2.39667565,2279.0,2278.6,6.58757411]
[1770118849037,32.26585716,2278.8,2278.6,6.58757411]
[1770118849345,24.12281325,2278.9,2278.7,11.88423774]
[1770118849545,2.39667565,2279.0,2278.8,3.40403991]
[1770118849736,2.39667565,2279.0,2278.7,5.07704363]
[1770118849737,24.12281325,2278.8,2278.5,5.07704363]
[1770118849941,24.12281325,2278.9,2278.5,5.07704363]
[1770118850144,24.12281325,2278.8,2278.7,0.21962]
[1770118850644,24.12281325,2278.8,2278.7,5.32580261]
[1770118851442,16.43668206,2278.8,2278.7,6.50751566]
[1770118851642,16.43668206,2278.8,2278.7,0.21962]
[1770118852038,16.43668206,2278.8,2278.7,5.34414358]
[1770118852443,16.43668206,2278.8,2278.7,6.50751566]
[1770118852747,16.38647708,2278.8,2278.7,0.21962]
[1770118852946,16.38647708,2278.8,2278.6,6.28789566]
[1770118853151,16.38647708,2278.7,2278.6,6.28789566]
[1770118853448,5.5835732,2278.8,2278.5,0.21964]
[1770118853648,5.5835732,2278.8,2278.7,13.01355917]
[1770118853945,2.39667565,2279.0,2278.6,6.69034706]
[1770118854150,4.3615732,2278.8,2278.7,6.47070706]
[1770118854351,2.39667565,2279.0,2278.7,9.2593127]
[1770118854748,2.39667565,2279.0,2278.9,6.533804]
[1770118855350,0.00360397,2279.7,2278.6,0.21964]
[1770118855645,0.00360397,2279.7,2279.4,1.44235582]
[1770118855847,0.00360397,2279.7,2278.8,6.54994108]
[1770118856047,0.00360397,2279.7,2278.9,6.54994108]
[1770118856853,0.22313397,2279.7,2278.9,6.54994108]
[1770118857253,0.21958,2279.2,2278.4,0.00343673]
[1770118857452,2.79458,2279.2,2278.4,0.00343673]
[1770118857650,0.2196,2279.0,2278.4,0.00343673]
[1770118858954,0.21962,2278.8,2278.2,3.9347749]
[1770118859152,0.21962,2278.8,2277.8,2.79530704]
[1770118859153,0.21962,2278.8,2278.1,3.9347749]
[1770118859657,0.21962,2278.8,2278.0,3.9347749]
[1770118860160,0.21962,2278.8,2278.0,3.93812918]
[1770118861461,0.21954,2279.6,2278.5,6.51037194]
[1770118861659,0.21954,2279.6,2278.6,8.98562364]
[1770118861857,2.575,2279.5,2278.7,5.05084874]
[1770118862153,0.21954,2279.6,2278.8,7.62644578]
[1770118862358,0.21954,2279.6,2278.9,8.98562364]
[1770118862560,0.21954,2279.6,2279.0,5.05084874]
[1770118862760,0.21954,2279.6,2279.1,5.05084874]
[1770118862961,0.21954,2279.6,2278.9,3.9347749]
[1770118863254,0.21954,2279.6,2279.0,5.04976888]
[1770118863560,0.21954,2279.6,2279.1,5.04976888]
[1770118863753,0.21954,2279.6,2278.8,2.57559704]
[1770118863957,0.21954,2279.6,2278.9,4.77912391]
[1770118864261,0.00360397,2279.7,2279.0,7.35468948]
[1770118864462,0.00360397,2279.7,2279.2,2.57559704]
[1770118864662,40.709,2280.3,2279.4,2.57559704]
[1770118864862,32.3,2280.3,2279.4,2.57559704]
[1770118865165,0.00322993,2280.4,2279.4,2.57559704]
[1770118865460,0.00322993,2279.9,2278.9,3.9347749]
[1770118865662,0.00671086,2279.9,2279.0,4.73830835]
[1770118865859,0.00671086,2279.9,2278.8,2.57398208]
[1770118866163,0.21957,2279.3,2278.0,2.79864132]
[1770118866363,6.774,2279.2,2278.0,2.79864132]
[1770118867662,0.13869474,2279.1,2278.0,2.79864132]
[1770118867865,0.13869474,2279.1,2278.0,0.00335428]
[1770118868065,0.13869474,2278.9,2278.0,0.00335428]
[1770118868262,6.91269474,2279.2,2278.0,2.50960395]
[1770118868463,32.3,2279.3,2278.2,2.72591967]
[1770118868763,8.54669474,2279.5,2278.6,2.50624967]
[1770118871864,8.408,2279.5,2278.6,2.50624967]
[1770118873664,0.10166434,2279.4,2278.3,2.52476487]
[1770118873864,0.10166434,2279.1,2278.0,2.52811915]
[1770118875268,0.2196,2279.0,2278.0,2.52811915]
[1770118876061,8.408,2279.5,2277.1,5.648]
[1770118876062,0.32295206,2278.3,2277.1,7.76852903]
[1770118876264,2.67828206,2278.2,2277.1,2.52395601]
[1770118877064,2.68310906,2278.2,2277.1,2.52730618]
[1770118879068,0.11205274,2278.1,2277.1,0.00335017]
[1770118879669,32.3,2278.0,2277.1,0.00335017]
[1770118879871,32.41205274,2278.0,2277.1,0.00335017]
[1770118880570,32.41205274,2278.0,2277.1,2.52295887]
[1770118880867,2.579827,2278.2,2277.1,2.52295887]
[1770118881272,34.9962071,2278.2,2277.1,2.52295887]
[1770118882968,32.304827,2278.2,2277.1,2.74273887]
[1770118883873,0.004827,2278.2,2277.1,2.74273887]
[1770118884269,0.004827,2278.2,2277.3,2.50580434]
[1770118884473,8.57862,2278.8,2277.7,2.50580434]
[1770118884670,0.14104159,2278.5,2277.4,2.50580434]
[1770118884973,0.14104159,2278.5,2277.1,0.00335017]
[1770118884974,0.15848773,2277.8,2277.1,0.00335017]
[1770118885275,0.15848773,2277.6,2276.7,2.49708126]
[1770118885572,4.16673,2277.7,2276.7,2.49708126]
[1770118886068,4.16673,2277.7,2276.7,2.50236106]
[1770118886271,4.17034192,2277.7,2276.7,2.50236106]
[1770118891573,0.22334192,2277.7,2276.7,2.50236106]
[1770118891778,8.338,2277.6,2276.7,2.72218106]
[1770118891976,0.00361192,2277.7,2276.7,2.72218106]
[1770118894771,8.335,2277.8,2276.7,2.72218106]
[1770118894772,3.075,2278.0,2277.2,2.72263447]
[1770118894972,3.075,2278.0,2277.2,2.50286447]
[1770118896075,0.00387268,2278.0,2277.2,2.50286447]
[1770118896876,3.29462,2278.8,2277.6,2.49208324]
[1770118897378,0.18990845,2278.5,2277.6,2.49208324]
[1770118897983,0.19335212,2278.5,2277.6,2.49208324]
[1770118898683,0.19335212,2278.5,2276.8,3.91917085]
[1770118898684,0.18990845,2278.2,2276.8,2.4813709]
[1770118899080,5.22693616,2278.3,2276.8,2.4813709]
[1770118899276,5.22693616,2278.3,2276.7,0.0052798]
[1770118899277,7.034,2278.2,2277.2,2.46992219]
[1770118899478,4.86244367,2278.5,2277.2,2.46992219]
[1770118899882,4.86244367,2278.5,2277.6,2.46992219]
[1770118900882,0.00344367,2278.5,2277.8,2.46992219]
[1770118901383,0.2966259,2278.5,2277.1,5.61835552]
[1770118901582,0.2197,2278.0,2277.0,2.44377164]
[1770118901783,8.5287,2278.0,2277.0,2.44377164]
[1770118902384,8.82188223,2278.0,2277.0,2.44377164]
[1770118903583,0.51288223,2278.0,2277.0,2.44377164]
[1770118903776,2.902,2277.9,2277.0,2.44377164]
[1770118905681,4.835,2278.1,2277.0,2.44377164]
[1770118909685,0.00344367,2278.5,2277.2,2.44377164]
[1770118910185,0.00344367,2278.5,2277.3,2.44377164]
[1770118910386,0.00344367,2278.5,2277.5,2.46748576]
[1770118911479,5.23037983,2278.5,2277.5,2.46748576]
[1770118918192,8.281,2278.4,2277.5,2.46748576]
[1770118919697,8.281,2278.4,2277.7,2.71946936]
[1770118919897,8.281,2278.4,2277.7,2.49974936]
[1770118920097,0.00344367,2278.5,2277.7,2.49974936]
[1770118922002,8.282,2278.9,2277.7,2.71946936]
[1770118923016,8.28761158,2278.9,2277.7,2.71946936]
[1770118923501,8.28761158,2278.9,2277.6,2.61057656]
[1770118923502,0.28718073,2278.8,2277.6,2.61057656]
[1770118923804,0.50686073,2278.2,2277.4,2.49974936]
[1770118924005,7.442,2278.1,2277.4,2.49974936]
[1770118925004,7.94589189,2278.1,2276.9,2.49974936]
[1770118925304,0.28420189,2277.8,2276.9,2.49974936]
[1770118925695,0.50392189,2277.8,2276.9,2.49974936]
[1770118927301,0.21972,2277.8,2276.9,2.49974936]
[1770118933706,0.29750389,2277.9,2276.7,0.0052798]
[1770118933707,0.31537985,2277.4,2276.7,0.0052798]
[1770118933902,0.21977,2277.2,2276.7,0.0052798]
[1770118934106,0.22362577,2277.2,2276.7,0.0052798]
[1770118934306,5.22693616,2277.5,2276.7,0.0052798]
[1770118934507,32.3,2277.6,2276.7,0.0052798]
[1770118934808,5.44666616,2277.7,2276.7,0.0052798]
[1770118935508,0.21973,2277.6,2276.7,0.0052798]
[1770118935708,0.21974,2277.5,2276.7,2.50502916]
[1770118936913,0.21975,2277.4,2276.7,2.50502916]
[1770118937614,0.32167485,2277.5,2276.7,2.50502916]
[1770118937815,5.54861101,2277.5,2276.7,2.50502916]
[1770118939217,0.21978,2277.1,2276.7,2.50502916]
[1770118940011,0.31729462,2277.4,2276.7,0.0052798]
[1770118940318,0.2198,2277.0,2276.7,9.8e-06]
[1770118940514,0.2198,2277.0,2276.4,2.49974936]
[1770118940713,0.21983,2276.7,2276.4,2.05194936]
[1770118941613,0.21983,2276.7,2276.4,2.05727587]
[1770118943718,5.22693616,2277.3,2276.4,2.05727587]
[1770118943917,5.22693616,2277.6,2276.4,2.05727587]
[1770118944218,38.5230967,2277.6,2276.4,2.05727587]
[1770118944418,33.29616054,2277.6,2276.4,2.05727587]
[1770118945217,0.21978,2277.2,2276.4,2.05727587]
[1770118945417,0.21975,2277.5,2276.4,2.05727587]
[1770118947618,0.21975,2277.5,2276.5,3.788]
[1770118947818,0.21975,2277.5,2276.7,2.38791792]
[1770118948219,0.21975,2277.4,2276.7,2.38791792]
[1770118949819,0.21976,2277.3,2276.7,2.38791792]
[1770118952320,0.2198,2276.9,2276.4,2.39324443]
[1770118953326,5.44673616,2276.9,2276.4,2.39324443]
[1770118954026,5.44673616,2276.9,2276.4,2.38497376]
[1770118954223,0.2198,2276.9,2276.4,2.38497376]
[1770118954524,5.44673616,2276.9,2276.4,2.38497376]
[1770118954824,5.44673616,2276.9,2276.4,2.38918658]
[1770118957525,0.2198,2276.9,2276.4,2.38918658]
[1770118958130,5.44673616,2276.9,2276.4,2.38918658]
[1770118958532,0.2198,2276.9,2276.4,2.38918658]
[1770118963429,13.49893616,2277.0,2275.7,2.61057656]
[1770118963430,0.97995211,2276.8,2275.7,2.61057656]
[1770118963639,0.21987,2276.2,2274.7,3.91917085]
[1770118963933,5.11287,2276.2,2274.8,5.63215383]
[1770118964432,5.11287,2276.2,2274.8,5.63611689]
[1770118964930,0.21987,2276.2,2274.8,5.63611689]
[1770118965132,32.3,2276.5,2274.9,3.91917085]
[1770118965634,5.44676616,2276.6,2275.1,2.38791792]
[1770118965935,5.44676616,2276.6,2275.2,2.38791792]
[1770118966434,0.21983,2276.6,2275.2,2.38791792]
[1770118966629,8.53383,2276.6,2275.4,2.38791792]
[1770118968439,8.53383,2276.6,2275.5,3.788]
[1770118968639,8.53383,2276.6,2275.6,2.38791792]
[1770118969732,8.53383,2276.6,2275.3,2.38791792]
[1770118969733,2.39967601,2276.4,2275.3,2.38791792]
[1770118969937,0.21989,2276.0,2275.3,2.38791792]
[1770118970134,0.22505929,2276.0,2275.3,2.38791792]
[1770118970641,0.21984,2276.5,2275.3,2.38791792]
[1770118971542,0.22388744,2276.5,2275.3,2.38791792]
[1770118971740,0.00404744,2276.5,2275.5,2.53356539]
[1770118972543,0.22388744,2276.5,2275.5,2.53356539]
[1770118975034,0.22388744,2276.5,2275.7,2.49833225]
[1770118975733,0.00404744,2276.5,2275.8,2.49833225]
[1770118975933,5.22366978,2276.9,2275.8,2.49833225]
[1770118976138,5.44346978,2276.9,2275.8,2.49833225]
[1770118976540,0.2198,2276.9,2275.8,2.49833225]
[1770118976840,0.22397004,2276.9,2275.8,2.49833225]
[1770118977241,5.44763982,2276.9,2275.8,2.49833225]
[1770118977442,0.21981,2276.8,2275.8,2.49833225]
[1770118978143,5.22366978,2276.4,2275.5,2.49833225]
[1770118978343,0.21988,2276.1,2275.5,2.49833225]
[1770118978844,39.18585779,2276.0,2275.5,2.49833225]
[1770118979043,0.21988,2276.1,2275.5,2.49833225]
[1770118981346,39.18585779,2276.3,2275.5,2.49833225]
[1770118981546,39.18585779,2276.5,2275.5,2.49833225]
[1770118982949,39.40569779,2276.5,2275.5,2.49833225]
[1770118984151,0.21984,2276.5,2275.5,2.49833225]
[1770118986550,39.18585779,2276.8,2275.7,2.49833225]
[1770118987350,39.18585779,2276.3,2275.4,2.49833225]
[1770118988049,0.21987,2276.2,2275.4,2.49833225]
[1770118988848,39.18585779,2276.3,2275.4,2.49833225]
[1770118989049,39.18585779,2276.4,2275.4,2.49833225]
[1770118989253,39.40568779,2276.7,2275.6,2.49833225]
[1770118989849,2.5775078,2277.7,2275.9,5.46446302]
[1770118990152,2.5775078,2277.7,2276.3,5.24457302]
[1770118990352,2.5775078,2277.7,2276.2,5.24457302]
[1770118990554,2.5775078,2277.7,2276.4,5.74887338]
[1770118990749,2.58219959,2277.7,2276.3,3.18100652]
[1770118991054,2.58219959,2277.7,2276.4,0.00504238]
[1770118991448,2.58219959,2277.7,2276.5,5.80281355]
[1770118991848,2.58219959,2277.7,2276.5,9.8701048]
[1770118992051,2.58219959,2277.7,2276.6,4.06729125]
[1770118992357,2.58219959,2277.7,2276.5,5.80281355]
[1770118992657,2.58219959,2277.7,2276.4,0.00504238]
[1770118992852,0.00469179,2277.7,2276.5,5.7583908]
[1770118993052,2.58219959,2277.7,2276.5,5.7583908]
[1770118996756,0.00469179,2277.7,2276.5,5.7583908]
[1770118996956,2.58219959,2277.7,2276.5,5.7583908]
[1770118999158,2.58219959,2277.7,2276.5,9.96720832]
[1770118999159,0.00469179,2277.7,2276.5,9.96720832]
[1770118999360,0.00469179,2277.7,2276.6,0.21983]
[1770118999658,2.5775078,2278.3,2276.9,0.2198]
[1770119000056,2.58167784,2278.2,2277.0,5.66461328]
[1770119000257,5.15371356,2278.5,2277.0,5.66461328]
[1770119000453,2.57671356,2278.4,2277.0,5.66461328]
[1770119002356,2.57671356,2278.4,2277.0,9.8734308]
[1770119002562,2.57671356,2278.4,2277.1,4.20881752]
[1770119002762,2.57671356,2278.4,2276.9,9.82639687]
[1770119002962,2.57671356,2278.4,2277.2,5.61757935]